bitfinex-derivatives/quotes_SOLF0:USTF0_20250520
["timestamp","ask_amount","ask_price","bid_price","bid_amount"]
[1747718065160,67.08304966,170.45,170.43,1.46702386]
[1747718065460,67.08304966,170.45,170.42,0.03948386]
[1747718066454,67.08304966,170.45,170.43,1.46701646]
[1747718066954,67.08304966,170.45,170.42,0.03948386]
[1747718067154,61.21744966,170.45,170.42,0.03948386]
[1747718067762,5.8661,170.43,170.42,0.03948386]
[1747718068061,5.8661,170.43,170.42,1.50662184]
[1747718068663,5.8661,170.43,170.42,0.03948386]
[1747718070763,5.8658,170.44,170.42,0.03948386]
[1747718072368,5.8661,170.43,170.42,0.03948386]
[1747718076062,5.8658,170.44,170.42,0.03948386]
[1747718076265,61.21744966,170.45,170.42,0.03948386]
[1747718076666,67.08294966,170.45,170.42,0.03948386]
[1747718077270,67.08294966,170.45,170.43,1.46708695]
[1747718077670,67.08294966,170.45,170.42,0.03948386]
[1747718078170,5.8658,170.44,170.42,0.03948386]
[1747718078370,61.21744966,170.45,170.42,0.03948386]
[1747718078970,5.866,170.44,170.43,1.46716043]
[1747718079365,61.21744966,170.45,170.43,1.46716043]
[1747718079667,61.21744966,170.45,170.42,0.03948386]
[1747718080068,61.21744966,170.45,170.43,1.4671367]
[1747718080869,61.21744966,170.45,170.42,0.03948386]
[1747718081771,61.21744966,170.45,170.43,1.46714173]
[1747718081972,61.21744966,170.45,170.42,0.03948386]
[1747718082970,61.21744966,170.45,170.43,1.46708385]
[1747718083170,67.08284966,170.45,170.43,1.46708385]
[1747718083570,67.08284966,170.45,170.42,0.03948386]
[1747718084672,67.08284966,170.45,170.43,1.46706691]
[1747718085072,5.90284966,170.45,170.43,1.46706691]
[1747718085273,61.12,170.44,170.42,0.03948386]
[1747718085673,61.12,170.44,170.43,1.46705467]
[1747718088775,66.9858,170.44,170.43,1.46705467]
[1747718088978,61.12,170.44,170.43,1.46705467]
[1747718089778,66.9858,170.44,170.42,0.03948386]
[1747718090479,61.12,170.44,170.42,0.03948386]
[1747718091080,61.12,170.44,170.43,1.46707306]
[1747718092078,66.9858,170.44,170.43,1.46707306]
[1747718093179,61.12,170.44,170.43,1.46707306]
[1747718093780,66.9858,170.44,170.43,1.46707306]
[1747718093975,61.12,170.44,170.43,1.46707306]
[1747718097785,66.9858,170.44,170.43,1.46707306]
[1747718097987,61.12,170.44,170.43,1.46707306]
[1747718098882,0.03744966,170.45,170.43,1.46707306]
[1747718099089,61.1,170.51,170.44,1.46707306]
[1747718099284,61.1,170.51,170.44,5.92563441]
[1747718099482,4.45856135,170.5,170.44,4.45856135]
[1747718099679,10.32246135,170.5,170.46,5.865]
[1747718099879,10.32246135,170.5,170.44,4.45856135]
[1747718100085,5.9076945,170.49,170.45,1.50956676]
[1747718100590,5.9076945,170.49,170.45,0.04283824]
[1747718100790,0.0435945,170.49,170.45,0.04283824]
[1747718101089,0.0435945,170.49,170.46,4.45856135]
[1747718101289,72.05699236,170.53,170.48,4.45856135]
[1747718101485,10.95699236,170.53,170.48,4.45856135]
[1747718101686,10.95699236,170.53,170.47,1.4665265]
[1747718101887,61.1,170.54,170.5,5.8634]
[1747718102288,61.1,170.54,170.46,11.01604116]
[1747718102589,0.04265385,170.52,170.49,5.8637]
[1747718103486,0.04265385,170.52,170.5,7.32992635]
[1747718103688,14.60932315,170.57,170.5,1.46632635]
[1747718103990,14.60932315,170.57,170.49,6.96214116]
[1747718104181,14.60932315,170.57,170.54,5.8622]
[1747718104383,14.60932315,170.57,170.55,1.4658378]
[1747718104782,14.60932315,170.57,170.56,5.8616]
[1747718105198,0.03694324,170.58,170.56,5.8616]
[1747718105390,0.03694324,170.58,170.57,1.46577653]
[1747718105591,0.03694324,170.58,170.57,7.32707653]
[1747718106091,0.03694324,170.58,170.56,5.8616]
[1747718106996,0.03694324,170.58,170.57,1.46564841]
[1747718107381,0.03694324,170.58,170.55,5.8619]
[1747718108494,0.03694324,170.58,170.56,7.32714907]
[1747718108994,0.03694324,170.58,170.56,5.8615]
[1747718109492,0.03694324,170.58,170.55,5.862]
[1747718109794,0.03694324,170.58,170.54,2.00514895]
[1747718110393,0.03694324,170.58,170.54,7.86724895]
[1747718112099,0.03694324,170.58,170.54,2.00514895]
[1747718113002,0.03694324,170.58,170.54,7.86714895]
[1747718115103,0.03694324,170.58,170.55,5.862]
[1747718116605,0.03694324,170.58,170.54,7.86734895]
[1747718118306,5.89794324,170.58,170.54,2.00514895]
[1747718119509,5.89794324,170.58,170.54,7.86734895]
[1747718120108,5.89794324,170.58,170.54,0.03844895]
[1747718121309,5.89794324,170.58,170.54,5.90074895]
[1747718122309,0.03694324,170.58,170.54,5.90074895]
[1747718125513,0.03694324,170.58,170.54,0.03844895]
[1747718126012,0.03694324,170.58,170.54,5.90064895]
[1747718126204,0.03694324,170.58,170.54,0.03844895]
[1747718126604,5.8615,170.57,170.54,0.03844895]
[1747718126907,0.03694324,170.58,170.54,0.03844895]
[1747718127103,60.98,170.57,170.54,0.03844895]
[1747718127306,5.862,170.55,170.54,0.03844895]
[1747718129020,5.8617,170.56,170.54,0.03844895]
[1747718129421,60.98,170.57,170.54,0.03844895]
[1747718130118,66.8413,170.57,170.54,0.03844895]
[1747718131826,66.8413,170.57,170.55,1.4657792]
[1747718132121,66.8413,170.57,170.54,0.03844895]
[1747718132516,60.98,170.57,170.54,0.03844895]
[1747718132819,0.03694324,170.58,170.54,0.03844895]
[1747718133123,0.03694324,170.58,170.55,5.8617]
[1747718133321,0.03694324,170.58,170.54,0.03844895]
[1747718134116,0.03694324,170.58,170.56,5.8615]
[1747718139833,0.03694324,170.58,170.54,0.03844895]
[1747718140428,5.89804324,170.58,170.54,0.03844895]
[1747718141529,5.89804324,170.58,170.55,1.46570989]
[1747718141731,0.03694324,170.58,170.55,1.46570989]
[1747718142026,0.03694324,170.58,170.56,1.46570989]
[1747718142230,0.03694324,170.58,170.57,5.8613]
[1747718142731,0.03694324,170.58,170.57,7.32700989]
[1747718143228,0.03694324,170.58,170.57,1.46570989]
[1747718145330,5.89784324,170.58,170.57,1.46570989]
[1747718147332,0.03694324,170.58,170.57,1.46570989]
[1747718149438,5.89784324,170.58,170.57,1.46570989]
[1747718150033,0.03694324,170.58,170.57,1.46570989]
[1747718150935,5.89784324,170.58,170.57,1.46570989]
[1747718156938,0.03694324,170.58,170.57,1.46570989]
[1747718161947,5.89784324,170.58,170.57,1.46570989]
[1747718162241,0.03694324,170.58,170.57,1.46570989]
[1747718162752,5.89784324,170.58,170.57,1.46570989]
[1747718162949,66.83784324,170.58,170.57,1.46570989]
[1747718163954,5.8619,170.56,170.54,0.03844895]
[1747718164150,60.97694324,170.58,170.54,0.03844895]
[1747718165150,60.97694324,170.58,170.55,1.46600577]
[1747718165548,60.97694324,170.58,170.54,0.03844895]
[1747718166149,5.8616,170.56,170.55,1.46597142]
[1747718166547,60.97694324,170.58,170.55,1.46597142]
[1747718166851,60.97694324,170.58,170.56,1.46597142]
[1747718167348,60.97694324,170.58,170.57,1.46597142]
[1747718168052,66.83814324,170.58,170.54,0.03844895]
[1747718168349,60.97694324,170.58,170.54,0.03844895]
[1747718168952,66.83814324,170.58,170.54,0.03844895]
[1747718169352,66.83814324,170.58,170.55,1.46587442]
[1747718169952,66.83814324,170.58,170.56,1.46587442]
[1747718170454,66.83814324,170.58,170.57,1.46587442]
[1747718171752,5.862,170.55,170.54,0.03844895]
[1747718176158,5.8614,170.57,170.54,0.03844895]
[1747718176358,60.9,170.56,170.54,0.03844895]
[1747718177959,5.862,170.55,170.54,0.03844895]
[1747718179361,66.7617,170.56,170.54,0.03844895]
[1747718180061,5.862,170.55,170.54,0.03844895]
[1747718180557,60.9,170.56,170.54,0.03844895]
[1747718182262,66.7617,170.56,170.54,0.03844895]
[1747718183971,5.8614,170.57,170.54,0.03844895]
[1747718184269,0.03694324,170.58,170.54,0.03844895]
[1747718184768,0.03694324,170.58,170.55,5.862]
[1747718185668,0.03694324,170.58,170.54,0.03844895]
[1747718185868,5.89794324,170.58,170.54,5.90074895]
[1747718187363,0.03694324,170.58,170.54,5.90074895]
[1747718187968,0.03694324,170.58,170.55,1.46573139]
[1747718188669,0.03694324,170.58,170.56,5.8614]
[1747718189067,0.03694324,170.58,170.57,1.46562706]
[1747718189568,0.03694324,170.58,170.56,5.8614]
[1747718190970,0.03694324,170.58,170.57,1.4655875]
[1747718191769,0.03694324,170.58,170.56,5.8614]
[1747718192568,0.03694324,170.58,170.57,1.46559238]
[1747718194068,0.03694324,170.58,170.55,5.8619]
[1747718194268,0.03694324,170.58,170.54,0.03844895]
[1747718195973,0.03694324,170.58,170.56,5.8614]
[1747718196174,0.03694324,170.58,170.54,0.03844895]
[1747718196673,0.03694324,170.58,170.56,5.8613]
[1747718196873,0.03694324,170.58,170.54,0.03844895]
[1747718197073,0.03694324,170.58,170.55,1.46549312]
[1747718197676,0.03694324,170.58,170.54,0.03844895]
[1747718198577,0.03694324,170.58,170.57,5.8613]
[1747718199784,0.03694324,170.58,170.57,7.32679262]
[1747718200784,0.03694324,170.58,170.57,5.8613]
[1747718202185,0.03694324,170.58,170.57,7.3268097]
[1747718202485,0.03694324,170.58,170.57,1.4655097]
[1747718202884,0.03694324,170.58,170.54,0.03844895]
[1747718203085,0.03694324,170.58,170.57,5.8613]
[1747718204784,0.03694324,170.58,170.57,7.32680482]
[1747718223601,0.03694324,170.58,170.57,1.46550482]
[1747718224708,0.03694324,170.58,170.57,7.32680482]
[1747718230107,0.03694324,170.58,170.57,7.3268802]
[1747718249525,0.03694324,170.58,170.57,5.8613]
[1747718252724,0.03694324,170.58,170.57,7.32680032]
[1747718255227,0.03694324,170.58,170.57,11.78122987]
[1747718255923,0.03694324,170.58,170.57,10.31572955]
[1747718257027,0.03694324,170.58,170.57,11.78107991]
[1747718259426,0.03694324,170.58,170.57,7.32665036]
[1747718265252,0.03694324,170.58,170.57,1.46535036]
[1747718266135,0.03694324,170.58,170.57,7.32665036]
[1747718270335,4.324e-05,170.58,170.57,7.32665036]
[1747718270632,60.62,170.66,170.62,5.8595]
[1747718271041,60.62,170.66,170.63,1.46535036]
[1747718271237,60.62,170.66,170.63,7.32455036]
[1747718271434,60.65994509,170.66,170.63,7.36193196]
[1747718271837,60.65994509,170.66,170.63,1.50273196]
[1747718272044,60.65994509,170.66,170.63,0.0373816]
[1747718272242,60.65994509,170.66,170.64,1.46521098]
[1747718272440,0.03994509,170.66,170.64,1.46521098]
[1747718272942,0.03994509,170.66,170.65,1.46521098]
[1747718273337,0.03994509,170.66,170.63,5.8965816]
[1747718273538,0.03994509,170.66,170.63,0.0373816]
[1747718273743,0.03994509,170.66,170.64,1.46521123]
[1747718274345,0.03994509,170.66,170.63,5.8964816]
[1747718275445,0.03994509,170.66,170.64,1.46520403]
[1747718275948,0.03994509,170.66,170.63,5.8964816]
[1747718276746,10.35257464,170.66,170.64,1.46521073]
[1747718277148,10.35257464,170.66,170.63,0.0373816]
[1747718277951,10.35257464,170.66,170.64,1.46521184]
[1747718278550,10.35257464,170.66,170.63,0.0373816]
[1747718279252,5.8586,170.65,170.63,0.0373816]
[1747718279653,4.49437464,170.66,170.63,0.0373816]
[1747718279857,10.35267464,170.66,170.64,1.46521073]
[1747718280351,10.35267464,170.66,170.63,5.8965816]
[1747718280749,0.03994509,170.66,170.63,0.0373816]
[1747718281155,0.03994509,170.66,170.64,1.46518592]
[1747718281344,0.03994509,170.66,170.65,1.46518592]
[1747718281754,0.03994509,170.66,170.65,7.32368592]
[1747718291672,4.49437464,170.66,170.63,0.0373816]
[1747718291863,4.45442955,170.64,170.63,0.0373816]
[1747718292064,10.31332955,170.64,170.63,0.0373816]
[1747718292364,4.45442955,170.64,170.54,6.37882955]
[1747718292571,4.45442955,170.61,170.54,6.37882955]
[1747718293062,4.45442955,170.61,170.55,1.46551495]
[1747718293268,0.04199237,170.6,170.56,0.04360347]
[1747718293464,0.04199237,170.6,170.56,1.50911842]
[1747718293871,0.04199237,170.6,170.57,1.46551495]
[1747718294368,0.04199237,170.6,170.57,7.32671495]
[1747718294569,0.04199237,170.6,170.57,1.46551495]
[1747718294871,0.04199237,170.6,170.58,1.46551495]
[1747718295170,0.04199237,170.6,170.56,0.04360347]
[1747718295362,5.90239237,170.6,170.56,5.90490347]
[1747718295765,5.90239237,170.6,170.57,1.46570207]
[1747718295959,10.31512955,170.59,170.57,1.46570207]
[1747718296371,10.31512955,170.59,170.56,0.04360347]
[1747718296574,70.93512955,170.59,170.56,0.04360347]
[1747718296766,4.45442955,170.57,170.56,0.04360347]
[1747718297173,4.45442955,170.57,170.56,1.50936457]
[1747718299876,4.45442955,170.57,170.56,0.04360347]
[1747718300672,4.45442955,170.57,170.56,1.50942118]
[1747718301075,0.04199237,170.6,170.56,7.37102118]
[1747718301265,60.56199237,170.6,170.56,0.04360347]
[1747718301470,4.45442955,170.59,170.57,1.46565801]
[1747718301871,4.45442955,170.59,170.56,0.04360347]
[1747718302277,4.45442955,170.59,170.56,5.90520347]
[1747718302465,10.31502955,170.59,170.56,0.04360347]
[1747718306178,5.861,170.58,170.56,0.04360347]
[1747718307573,10.31512955,170.59,170.56,0.04360347]
[1747718309279,4.45442955,170.59,170.56,5.90520347]
[1747718309476,4.45442955,170.59,170.56,0.04360347]
[1747718309671,10.31512955,170.59,170.56,0.04360347]
[1747718313776,70.83512955,170.59,170.56,0.04360347]
[1747718314779,70.83512955,170.59,170.56,5.90520347]
[1747718315281,70.83512955,170.59,170.56,0.04360347]
[1747718315488,0.04199237,170.6,170.56,0.04360347]
[1747718315673,60.56199237,170.6,170.56,0.04360347]
[1747718316681,66.42229237,170.6,170.56,5.90500347]
[1747718316981,60.56199237,170.6,170.56,5.90500347]
[1747718317182,60.56199237,170.6,170.58,5.8608]
[1747718317372,60.56199237,170.6,170.56,4.49803302]
[1747718317577,0.04199237,170.6,170.56,4.49803302]
[1747718317877,0.04199237,170.6,170.59,5.8606]
[1747718318982,0.04199237,170.6,170.59,7.32596456]
[1747718319372,9.237e-05,170.6,170.59,7.32596456]
[1747718319577,93.09228393,170.66,170.63,5.8589]
[1747718319781,93.09228393,170.66,170.59,1.46536456]
[1747718319979,93.09228393,170.66,170.58,67.47276786]
[1747718320179,93.09228393,170.66,170.64,5.8588]
[1747718320786,93.09228393,170.66,170.63,0.04077842]
[1747718321685,93.09228393,170.66,170.64,5.8588]
[1747718326088,93.09228393,170.66,170.65,5.8585]
[1747718326586,0.0374162,170.67,170.65,5.8585]
[1747718329087,0.0374162,170.67,170.64,5.8588]
[1747718329289,0.0374162,170.67,170.63,0.04077842]
[1747718329689,0.0374162,170.67,170.63,5.89987842]
[1747718329893,60.38,170.66,170.63,0.04077842]
[1747718330987,5.8589,170.64,170.63,0.04077842]
[1747718333183,5.8608,170.59,170.52,60.38]
[1747718333386,5.8608,170.59,170.51,60.38]
[1747718333893,5.8603,170.6,170.51,60.38]
[1747718334186,6.95276786,170.64,170.51,60.38]
[1747718334391,0.04109133,170.57,170.54,0.03899188]
[1747718334588,0.04470791,170.57,170.54,0.03899188]
[1747718334993,0.04470791,170.57,170.55,1.46557163]
[1747718335285,0.04470791,170.57,170.55,7.32747163]
[1747718335491,0.04470791,170.57,170.55,5.8619]
[1747718335893,0.04470791,170.57,170.56,5.8616]
[1747718336091,0.04470791,170.57,170.56,7.32714151]
[1747718336694,0.04470791,170.57,170.56,5.8616]
[1747718338198,0.04470791,170.57,170.56,7.32699231]
[1747718338796,0.04470791,170.57,170.56,5.8616]
[1747718340098,0.04470791,170.57,170.56,7.32697856]
[1747718340901,0.04470791,170.57,170.56,5.8616]
[1747718341803,0.04470791,170.57,170.56,7.32697806]
[1747718342203,0.04470791,170.57,170.56,5.8616]
[1747718344002,0.04470791,170.57,170.56,7.32695954]
[1747718344202,0.04470791,170.57,170.56,5.8616]
[1747718347306,0.04470791,170.57,170.56,7.32696159]
[1747718348107,0.04470791,170.57,170.56,5.8616]
[1747718350714,7.91e-06,170.57,170.56,7.32694621]
[1747718351602,7.91e-06,170.57,170.56,5.8616]
[1747718352310,7.91e-06,170.57,170.56,7.32684713]
[1747718352510,7.91e-06,170.57,170.56,67.72684713]
[1747718359702,7.91e-06,170.57,170.56,66.2616]
[1747718360917,60.28,170.64,170.63,5.8592]
[1747718361218,60.28,170.64,170.56,61.86533282]
[1747718361708,60.28,170.67,170.57,1.46533282]
[1747718361917,0.03842636,170.64,170.6,0.03845417]
[1747718362509,0.03842636,170.64,170.61,1.46533282]
[1747718363015,0.03842636,170.64,170.62,1.46533282]
[1747718363821,0.03842636,170.64,170.61,5.8598]
[1747718364915,0.03842636,170.64,170.62,1.46531226]
[1747718365520,0.03842636,170.64,170.63,1.46531226]
[1747718368226,0.03842636,170.64,170.63,7.32451226]
[1747718375926,0.03842636,170.64,170.63,1.46531226]
[1747718377029,0.03842636,170.64,170.63,7.32451226]
[1747718382333,2.636e-05,170.64,170.63,7.32451226]
[1747718382835,2.636e-05,170.64,170.63,5.8592]
[1747718383029,2.636e-05,170.64,170.62,5.8595]
[1747718383628,2.636e-05,170.64,170.6,5.89845417]
[1747718383828,2.636e-05,170.64,170.6,0.03845417]
[1747718384232,2.636e-05,170.64,170.61,1.46528593]
[1747718384437,5.85912636,170.64,170.61,1.46528593]
[1747718384843,5.85912636,170.64,170.6,0.03845417]
[1747718385741,5.85912636,170.64,170.6,5.89865417]
[1747718387232,2.636e-05,170.64,170.6,0.03845417]
[1747718387837,5.8598,170.62,170.6,0.03845417]
[1747718388031,60.28,170.61,170.6,0.03845417]
[1747718390137,60.28,170.61,170.6,1.5040245]
[1747718391540,60.28,170.61,170.49,67.15276786]
[1747718392039,5.8603,170.6,170.55,5.8616]
[1747718392433,0.03831043,170.59,170.56,0.04091786]
[1747718393737,0.03831043,170.59,170.47,60.2]
[1747718393940,2.0416,170.59,170.47,60.2]
[1747718394640,0.03726755,170.55,170.51,0.04351254]
[1747718395232,0.03726755,170.55,170.52,5.8629]
[1747718395946,0.03726755,170.55,170.53,5.8626]
[1747718396932,0.03726755,170.55,170.54,5.8623]
[1747718398339,0.03726755,170.55,170.51,0.04351254]
[1747718398540,0.03726755,170.55,170.51,60.24351254]
[1747718399040,0.03726755,170.55,170.52,5.8629]
[1747718400545,0.03726755,170.55,170.53,5.8626]
[1747718400742,0.03726755,170.55,170.51,60.24351254]
[1747718401549,0.03726755,170.55,170.54,5.8623]
[1747718404041,0.03726755,170.55,170.54,7.32798495]
[1747718409251,6.755e-05,170.55,170.54,7.32798495]
[1747718415760,6.755e-05,170.55,170.54,1.46568495]
[1747718416656,6.755e-05,170.55,170.51,5.90661254]
[1747718417062,6.755e-05,170.55,170.52,7.32883633]
[1747718417557,6.755e-05,170.55,170.54,5.8623]
[1747718417961,6.755e-05,170.55,170.54,7.32823633]
[1747718418349,6.755e-05,170.55,170.54,5.8623]
[1747718420763,6.755e-05,170.55,170.54,7.32813159]
[1747718421357,6.755e-05,170.55,170.54,1.46583159]
[1747718422462,5.86196755,170.55,170.54,1.46583159]
[1747718422857,5.86196755,170.55,170.51,5.90651254]
[1747718423053,5.8624,170.54,170.51,5.90651254]
[1747718423568,5.8624,170.54,170.52,1.46604102]
[1747718423963,5.8624,170.54,170.53,1.46604102]
[1747718424466,5.8624,170.54,170.51,0.04351254]
[1747718424859,6.755e-05,170.55,170.52,1.46604151]
[1747718425766,5.8623,170.54,170.53,1.46604151]
[1747718426165,8.87723541,170.55,170.51,0.04351254]
[1747718426663,5.863,170.52,170.51,0.04351254]
[1747718426962,5.863,170.52,170.43,60.12]
[1747718426963,60.12,170.52,170.43,60.12]
[1747718427172,2.0555,170.51,170.43,60.12]
[1747718427360,5.8643,170.49,170.4,60.12]
[1747718427663,5.8643,170.49,170.41,1.46663852]
[1747718427863,5.8644,170.48,170.41,1.46663852]
[1747718428064,0.04000428,170.46,170.43,0.03794568]
[1747718428667,0.04000428,170.46,170.43,5.90394568]
[1747718429264,0.04000428,170.46,170.43,0.03794568]
[1747718430267,0.04000428,170.46,170.43,5.90394568]
[1747718430770,0.04000428,170.46,170.44,1.46681001]
[1747718431462,0.04000428,170.46,170.45,1.46681001]
[1747718431870,5.90500428,170.46,170.43,0.03794568]
[1747718432471,5.8655,170.45,170.43,0.03794568]
[1747718433466,0.04000428,170.46,170.43,0.03794568]
[1747718434278,0.04000428,170.46,170.44,5.8656]
[1747718434669,0.04000428,170.46,170.43,0.03794568]
[1747718434868,0.04000428,170.46,170.44,5.8657]
[1747718435074,0.04000428,170.46,170.43,0.03794568]
[1747718435370,0.04000428,170.46,170.44,5.8655]
[1747718436071,0.04000428,170.46,170.45,5.8654]
[1747718438376,0.04000428,170.46,170.43,0.03794568]
[1747718439880,5.8657,170.44,170.43,0.03794568]
[1747718445682,5.8674,170.4,170.35,60.16]
[1747718446376,5.8675,170.39,170.35,66.0286]
[1747718446581,0.04289605,170.39,170.35,60.20059444]
[1747718446781,0.04289605,170.39,170.35,0.04059444]
[1747718447488,0.04289605,170.39,170.36,5.8682]
[1747718448487,0.04289605,170.39,170.37,5.8681]
[1747718450889,0.04289605,170.39,170.36,5.8684]
[1747718452387,5.91039605,170.39,170.35,5.90929444]
[1747718453987,5.8681,170.37,170.35,0.04059444]
[1747718454194,0.04289605,170.39,170.35,0.04059444]
[1747718455188,5.91059605,170.39,170.35,5.90919444]
[1747718456289,5.8678,170.38,170.35,0.04059444]
[1747718457196,5.8678,170.38,170.35,5.90939444]
[1747718458701,5.8678,170.38,170.35,0.04059444]
[1747718458894,5.8682,170.37,170.35,0.04059444]
[1747718459296,0.04289605,170.39,170.35,0.04059444]
[1747718460198,5.8685,170.36,170.35,0.04059444]
[1747718462095,10.84676391,170.39,170.35,0.04059444]
[1747718462300,0.04289605,170.39,170.35,0.04059444]
[1747718463601,5.8681,170.38,170.35,5.90939444]
[1747718463800,5.8681,170.38,170.35,0.04059444]
[1747718463998,0.04289605,170.39,170.35,0.04059444]
[1747718464199,6.99566391,170.39,170.35,0.04059444]
[1747718464398,5.8685,170.36,170.35,0.04059444]
[1747718467898,5.8685,170.36,170.17,507.18]
[1747718467899,6.95276786,170.36,170.17,507.18]
[1747718468100,6.95276786,170.36,170.22,3.8968]
[1747718468591,5.8698,170.33,170.22,3.8968]
[1747718468789,5.8698,170.33,170.23,60.12]
[1747718468990,0.04279033,170.3,170.26,0.03967459]
[1747718469290,0.04279033,170.3,170.27,65.9913]
[1747718469799,0.04279033,170.3,170.28,1.46801029]
[1747718470401,5.91339033,170.3,170.27,60.12]
[1747718474100,0.04279033,170.3,170.27,60.12]
[1747718474301,0.04279033,170.3,170.27,65.9915]
[1747718476299,0.04279033,170.3,170.27,60.12]
[1747718478103,0.04279033,170.3,170.27,65.9915]
[1747718478503,0.04279033,170.3,170.27,60.12]
[1747718479203,0.04279033,170.3,170.28,5.8711]
[1747718479503,0.04279033,170.3,170.27,60.12]
[1747718479803,0.04279033,170.3,170.26,0.03967459]
[1747718481605,0.04279033,170.3,170.27,5.8715]
[1747718482604,5.91339033,170.3,170.26,5.91147459]
[1747718483204,0.04279033,170.3,170.26,0.03967459]
[1747718484505,0.04279033,170.3,170.27,5.8715]
[1747718485904,0.04279033,170.3,170.26,5.91147459]
[1747718487895,0.04279033,170.3,170.26,0.03967459]
[1747718488399,0.04279033,170.3,170.26,6.99244245]
[1747718489206,0.04279033,170.3,170.29,5.8709]
[1747718489401,0.04279033,170.3,170.29,65.9309]
[1747718491811,0.04279033,170.3,170.29,67.39902184]
[1747718501314,0.04279033,170.3,170.29,61.52812184]
[1747718501915,5.91329033,170.3,170.29,1.46812184]
[1747718502718,5.871,170.29,170.26,60.09967459]
[1747718502913,5.871,170.29,170.26,0.03967459]
[1747718503116,0.04279033,170.3,170.27,1.46826458]
[1747718503316,4.03869033,170.3,170.27,1.46826458]
[1747718503516,4.03869033,170.3,170.26,0.03967459]
[1747718504818,5.8715,170.28,170.26,0.03967459]
[1747718507922,4.03869033,170.3,170.26,0.03967459]
[1747718508524,5.8712,170.29,170.26,0.03967459]
[1747718508726,4.03869033,170.3,170.26,0.03967459]
[1747718511128,5.8713,170.28,170.26,0.03967459]
[1747718512831,5.8716,170.27,170.26,0.03967459]
[1747718513330,60.0,170.28,170.2,5.874]
[1747718513830,5.8726,170.25,170.21,5.8734]
[1747718514330,5.91125608,170.25,170.21,5.91188811]
[1747718515636,5.91125608,170.25,170.22,1.46863885]
[1747718516229,5.91125608,170.25,170.21,5.91188811]
[1747718517432,5.8727,170.24,170.21,0.03848811]
[1747718520241,5.873,170.23,170.21,0.03848811]
[1747718522440,5.8733,170.22,170.21,0.03848811]
[1747718523432,0.03865608,170.25,170.21,0.03848811]
[1747718523633,0.03865608,170.25,170.21,5.91178811]
[1747718524240,0.03865608,170.25,170.22,5.8732]
[1747718524541,0.03865608,170.25,170.21,0.03848811]
[1747718524840,0.03865608,170.25,170.22,5.8732]
[1747718525143,0.03865608,170.25,170.21,0.03848811]
[1747718525534,5.91095608,170.25,170.21,5.91188811]
[1747718526743,5.91095608,170.25,170.22,5.8732]
[1747718528742,0.03865608,170.25,170.24,5.8726]
[1747718529345,0.03865608,170.25,170.23,5.8728]
[1747718529541,0.03865608,170.25,170.21,60.03848811]
[1747718529945,0.03865608,170.25,170.23,5.8729]
[1747718530647,0.03865608,170.25,170.22,5.8732]
[1747718531844,0.03865608,170.25,170.23,5.8729]
[1747718532345,0.03865608,170.25,170.21,60.03848811]
[1747718532546,0.03865608,170.25,170.22,1.46858737]
[1747718532944,0.03865608,170.25,170.21,60.03848811]
[1747718533449,0.03865608,170.25,170.22,5.8732]
[1747718534947,0.03865608,170.25,170.23,5.8729]
[1747718536341,0.03865608,170.25,170.21,60.03848811]
[1747718536742,5.8729,170.24,170.21,60.03848811]
[1747718536942,0.03865608,170.25,170.21,65.91208811]
[1747718537246,5.91115608,170.25,170.21,65.91208811]
[1747718537950,5.91115608,170.25,170.22,5.8733]
[1747718538549,0.03865608,170.25,170.21,60.03848811]
[1747718539043,0.03865608,170.25,170.22,1.46860172]
[1747718539249,0.03865608,170.25,170.23,5.8727]
[1747718541848,0.03865608,170.25,170.21,60.03848811]
[1747718542049,0.03865608,170.25,170.22,1.46854509]
[1747718542251,0.03865608,170.25,170.23,1.46854509]
[1747718542451,0.03865608,170.25,170.21,60.03848811]
[1747718542753,0.03865608,170.25,170.22,1.4686866]
[1747718543654,0.03865608,170.25,170.23,1.4686866]
[1747718543950,5.91095608,170.25,170.23,1.4686866]
[1747718544151,5.91095608,170.25,170.24,1.4686866]
[1747718545050,0.03865608,170.25,170.24,1.4686866]
[1747718545451,5.91095608,170.25,170.24,1.4686866]
[1747718551852,10.38417057,170.25,170.24,1.4686866]
[1747718552057,4.51187057,170.25,170.24,1.4686866]
[1747718552261,4.51187057,170.25,170.22,5.8732]
[1747718552461,0.03865608,170.25,170.23,5.8729]
[1747718552660,0.03865608,170.25,170.21,0.03848811]
[1747718553057,0.03865608,170.25,170.22,1.46861427]
[1747718553363,0.03865608,170.25,170.22,7.34161427]
[1747718553765,0.03865608,170.25,170.22,5.873]
[1747718553956,4.51187057,170.25,170.23,1.46866944]
[1747718554764,4.51187057,170.25,170.21,0.03848811]
[1747718555464,4.51187057,170.25,170.22,1.46873328]
[1747718555663,0.03865608,170.25,170.22,1.46873328]
[1747718555864,0.03865608,170.25,170.23,1.46873328]